{"text_format":"1","workbook":"xlsx","n_sheets":1,"sheets":["NON-FOOD MASTER     "],"not_rendered":{"charts":0,"images":0,"macros":1,"external_links":0,"defined_names":6,"comments":0,"pivot_tables":0},"unopened":[],"bounds":{"document_bytes":16777216,"sheet_cells":100000,"rows_first":2000,"rows_last":500,"rows_between":2000,"halvings":0,"cell_chars":16384,"cell_head_chars":4096},"cells_cut":0,"cells_raw":0,"read":"whole","date_system":"1900"}

{"sheet":"NON-FOOD MASTER     ","index":0,"n_rows":121,"n_cols":19,"rows_kept":121,"cut":false,"hidden":false,"merged":[[1,2,1,5],[1,8,1,10],[0,11,0,14],[1,11,1,14],[2,11,2,14],[0,2,0,5],[0,8,0,10],[3,11,4,11],[2,2,2,5],[3,12,4,12],[2,8,2,10],[3,4,4,4],[3,8,4,9],[3,6,4,6],[3,10,4,10],[3,5,4,5],[3,18,4,18],[3,13,4,13],[3,14,4,14],[3,15,4,15],[3,16,4,16],[3,17,4,17],[3,0,4,0],[3,1,4,1],[3,2,4,2],[3,3,4,3],[3,7,4,7],[3,24,4,24],[3,25,4,25],[3,26,4,26],[3,27,4,27],[3,21,4,21],[3,22,4,22],[3,23,4,23]]}
[null,null,"ROSWELL INDEPENDENT SCHOOL DISTRICT",null,null,null,null,null,"Vendor Name:"]
[null,null,"CAFETERIA NON-FOOD BID 19-10 FOR 2019-20",null,null,null,null,null,"Vendor Contact"]
[null,null,"MUST BE RECEIVED BY MAY 2, 2019 ON CD-R  OR FLASH DRIVE\nSEALED WITH SUPPORTING DOCUMENTS",null,null,null,null,null,"Date"]
["LOCATION","ITEM","STOCK ID","ITEM","DESCRIPTION","Approved Brand","Product Code or UPC","BID UNIT","CASE PACK",null,"EST USAGE","BID UNIT PRICE","Extended Total","per UNIT price","VENDOR STOCK NO","BRAND NAME","PACK SIZE","SPECIAL ORDER\nYES  NO","BIDDERS NOTES"]
[]
[null,1,5142,"APRON BLACK CLOTH","APRON, BLACK, POLY/COTTON BLEND, 1 EXTRA DEEP PATCH POCKET, ADJUSTABLE NECK STRAP, ONE SIZE FITS ALL, 24” L X 28” W","SPECIFY",null,"EA",1,"EA",350,null,{"$f":"SUM(L6*K6)","v":0},{"$f":"IFERROR(SUM(L6/I6),0)","v":0}]
[null,2,5043,"APRON DISPOSABLE","APRON, DISPOSABLE BIB, WHITE PLASTIC","SPECIFY","","CS",100,"CT",175,null,{"$f":"SUM(L7*K7)","v":0},{"$f":"IFERROR(SUM(L7/I7),0)","v":0}]
[null,3,5016,"BAG BUN 27X37","BAG, BUN, 27X37","SPECIFY","","CS",225,"CT",200,null,{"$f":"SUM(L8*K8)","v":0},{"$f":"IFERROR(SUM(L8/I8),0)","v":0}]
[null,4,5017,"BAG BUN RACK COVER","BAG, BUN RACK COVER","SPECIFY","","CS",50,"CT",150,null,{"$f":"SUM(L9*K9)","v":0},{"$f":"IFERROR(SUM(L9/I9),0)","v":0}]
[null,5,5096,"BAG HOT DOG","BAG, HOT DOG, 3x2x9, PLAIN WHITE PAPER","SPECIALITY PACKING OR ELKAY OR APPROVED EQUIVALENT",875010,"CS",1000,"CT",450,null,{"$f":"SUM(L10*K10)","v":0},{"$f":"IFERROR(SUM(L10/I10),0)","v":0}]
[null,6,5062,"BAG LUNCH SACK PAPER","BAG, LUNCH SACK, BROWN,  6LB CRAFT","SPECIFY","","CS",500,"CT",50,null,{"$f":"SUM(L11*K11)","v":0},{"$f":"IFERROR(SUM(L11/I11),0)","v":0}]
[null,7,5099,"BAG SADDLE 10.5X8.5","BAG, SADDLE DELI FRESH, 10.5X8.5","HANDGUARDS OR APPROVED EQUIVALENT",303679606,"CS",2000,"CT",100,null,{"$f":"SUM(L12*K12)","v":0},{"$f":"IFERROR(SUM(L12/I12),0)","v":0}]
[null,8,5098,"BAG SADDLE 6.5X7","CLEAR POLYETHYLENE, FOOD GRADE, 6.5X7","SPECIFY","","CS",2000,"CT",100,null,{"$f":"SUM(L13*K13)","v":0},{"$f":"IFERROR(SUM(L13/I13),0)","v":0}]
[null,9,5046,"BAG T-SAK","PLAIN WHITE T-SHIRT BAG 12X7X23","SPECIFY","","CS",1000,"CT",75,null,{"$f":"SUM(L14*K14)","v":0},{"$f":"IFERROR(SUM(L14/I14),0)","v":0}]
[null,10,5047,"BAG ZIPPER STYLE FREEZER GAL","RECLOSABLE, DOUBLE-ZIPPER FOOD STORAGE BAG WITH TWO LAYER SEAL, WRITE ON LABEL, SELF DISPENSING COMMERCIAL BULK PACK, 10.5X11","SPECIFY","","CS",250,"CT",120,null,{"$f":"SUM(L15*K15)","v":0},{"$f":"IFERROR(SUM(L15/I15),0)","v":0}]
[null,11,5048,"BAG ZIPPER STYLE FREEZER QT","RECLOSABLE, DOUBLE-ZIPPER FOOD STORAGE BAG WITH TWO LAYER SEAL, WRITE ON LABEL, SELF DISPENSING COMMERCIAL BULK PACK","SPECIFY","","CS",500,"CT",75,null,{"$f":"SUM(L16*K16)","v":0},{"$f":"IFERROR(SUM(L16/I16),0)","v":0}]
[null,12,null,"BAGGING SYSTEM","BAG, MICRO-PERF OVEN ABLE,  7X9 ","Ekon-O-Pac",null,"CS",5000,"CT",35,null,{"$f":"SUM(L17*K17)","v":0},{"$f":"IFERROR(SUM(L17/I17),0)","v":0}]
[null,13,null,"BAGGING SYSTEM","BAG, NON VENT COLD, 4595, 4.5X9.5","Ekon-O-Pac",null,"CS",5000,"CT",5,null,{"$f":"SUM(L18*K18)","v":0},{"$f":"IFERROR(SUM(L18/I18),0)","v":0}]
[null,14,null,"BAGGING SYSTEM","BAG, NON VENT LUNCH, 1015, 10X15","Ekon-O-Pac",null,"CS",3000,"CT",5,null,{"$f":"SUM(L19*K19)","v":0},{"$f":"IFERROR(SUM(L19/I19),0)","v":0}]
[null,15,null,"BAGGING SYSTEM","BAG, VENT OVEN ABLE HOT, 49, 4.25X9","Ekon-O-Pac",null,"CS",5000,"CT",10,null,{"$f":"SUM(L20*K20)","v":0},{"$f":"IFERROR(SUM(L20/I20),0)","v":0}]
[null,16,null,"BAGGING SYSTEM","BAG, VENT OVEN ABLE HOT, 68, 6X9","Ekon-O-Pac",null,"CS",5000,"CT",10,null,{"$f":"SUM(L21*K21)","v":0},{"$f":"IFERROR(SUM(L21/I21),0)","v":0}]
[null,17,null,"BAGGING SYSTEM","TAPE, HOT, SEALING FOR BAGGING SYSTEM (EPAC 4 SYSTEM), .375X180 YD","Ekon-O-Pac",null,"CS",96,"CT",15,null,{"$f":"SUM(L22*K22)","v":0},{"$f":"IFERROR(SUM(L22/I22),0)","v":0}]
[null,18,null,"BAGGING SYSTEM","TAPE, SEALING FOR BAGGING SYSTEM (EPAC 4 SYSTEM), .375X180 YD","Ekon-O-Pac",null,"CS",96,"CT",15,null,{"$f":"SUM(L23*K23)","v":0},{"$f":"IFERROR(SUM(L23/I23),0)","v":0}]
[null,19,null,"BAKING PROCECTION SLEEVE","ARM PROTECTION SLEEVE IS KNIT CUT AT THE WRIST. WHITE. 100% COTTON LOOP TERRY FABRIC. PROTECTS UP TO 350°F. 17\"L. MACHINE WASHABLE","SPECIFY",null,"CS",12,"EA",5,null,{"$f":"SUM(L24*K24)","v":0},{"$f":"IFERROR(SUM(L24/I24),0)","v":0}]
[null,20,5003,"BLEACH","CLEANERS, BLEACH","SPECIFY","","CS",6,"BTL",125,null,{"$f":"SUM(L25*K25)","v":0},{"$f":"IFERROR(SUM(L25/I25),0)","v":0}]
[null,21,5063,"BOAT FOOD 1 LB","1 LB VINTAGE VFT100 6 1/4 X 4 11/6 X 1 19/32 RED PLAID NO.100 FOOD TRAY 250 PER BOX -- 4 BOXES PER CASE. (PRODUCT ID: UFVFT100)","SPECIFY","","CS",1000,"EA",75,null,{"$f":"SUM(L26*K26)","v":0},{"$f":"IFERROR(SUM(L26/I26),0)","v":0}]
[null,22,5018,"BOAT FOOD 1/2 LB","8 OZ VINTAGE VFT50 5 9/32 X 3 3/4 X 1 3/8 RED PLAID NO.50 FOOD TRAY 250 PER BOX -- 4 BOXES PER CASE.","SPECIFY","","CS",1000,"EA",20,null,{"$f":"SUM(L27*K27)","v":0},{"$f":"IFERROR(SUM(L27/I27),0)","v":0}]
[null,23,5064,"BOAT FOOD 2 LB","2 LB VINTAGE VFT200 6 11/16 X 5 X1 3/5 RED PLAID NO.200 FOOD TRAY 250 PER BOX -- 4 BOXES PER CASE. (PRODUCT ID: UFVFT200)","SPECIFY","","CS",1000,"EA",110,null,{"$f":"SUM(L28*K28)","v":0},{"$f":"IFERROR(SUM(L28/I28),0)","v":0}]
[null,24,5065,"BOAT PAPER 3 LB","VINTAGE VFT300 8 1/8 X 5 7/8 X 2 1/8 RED PLAID NO300 FOOD TRAY 125 PER BOX -- 4 BOXES PER CASE.","SPECIFY","","CS",1000,"EA",25,null,{"$f":"SUM(L29*K29)","v":0},{"$f":"IFERROR(SUM(L29/I29),0)","v":0}]
[null,25,5004,"BROOM ANGLE","BROOM, ANGLE, DELUXE 5.5\" BRISTLES, 55.37\" METAL HANDLE","SPECIFY",null,"EA",1,"EA",40,null,{"$f":"SUM(L30*K30)","v":0},{"$f":"IFERROR(SUM(L30/I30),0)","v":0}]
[null,26,5112,"BROOM BRUSH DUAL SURFACE","DUAL SURFACE SCRUB BROOM, SIDE AND BOTTOM BRISTLES FOR FLOOR AND BASEBOARD SCRUBBING.  CRIMPED YELLOW POLYPROPYLENE BRISTLES, 10 IN FOAM PLASTIC BLOCK WITH THREADED HANDLE HOLE.","BROADWALK OR APPROVED EQUIVALENT","BWK3410","CS",1,"EA",10,null,{"$f":"SUM(L31*K31)","v":0},{"$f":"IFERROR(SUM(L31/I31),0)","v":0}]
[null,27,5005,"BRUSH 3IN PASTRY","BRUSH, 3 IN PASTRY","SPECIFY","","CS",1,"EA",11,null,{"$f":"SUM(L32*K32)","v":0},{"$f":"IFERROR(SUM(L32/I32),0)","v":0}]
[null,28,5006,"BRUSH POT CLEANER","BRUSH, POT CLEANER","SPECIFY","","CS",1,"EA",5,null,{"$f":"SUM(L33*K33)","v":0},{"$f":"IFERROR(SUM(L33/I33),0)","v":0}]
[null,29,5147,"BUCKET COMBO","BUCKET, 26 QT, MOP/WRINGER SP","SPECIFY",null,"EA",1,"CT",10,null,{"$f":"SUM(L34*K34)","v":0},{"$f":"IFERROR(SUM(L34/I34),0)","v":0}]
[null,30,5066,"CNTNR BOWL 12 OZ FOAM LAM BLK","BOWL, 12 OZ, FOAM LAM BLK","SPECIFY","","CS",1000,"CT",35,null,{"$f":"SUM(L35*K35)","v":0},{"$f":"IFERROR(SUM(L35/I35),0)","v":0}]
[null,31,5110,"CNTNR HINGED 3 CMPT W/LID FOAM","CONTAINER, FOAM, HINGED 3 COMPARTMENT, 9.25X9.25X3","SPECIFY",null,"CS",200,"CT",35,null,{"$f":"SUM(L36*K36)","v":0},{"$f":"IFERROR(SUM(L36/I36),0)","v":0}]
[null,32,5113,"CNTNR HINGED 3 CMPT W/LID PLASTIC","CULINARY CLASSIC 9.5X10.5X1.5 3-CMP. BASE/3-CMP. LID, HINGED CLAMSHELL CODE CC91033B","ANCHOR PKG OR APPROVED EQUIVALENT",4659633,"CS",100,"CT",34,null,{"$f":"SUM(L37*K37)","v":0},{"$f":"IFERROR(SUM(L37/I37),0)","v":0}]
[null,33,5107,"CNTNR HINGED 7.5x3\" OCTOGANAL","7.5X3 OCTOGANAL CONTAINER BLACK BASE WITH HINGED CLEAR DOME.","ANCHOR PKG OR APPROVED EQUIVALENT",4777502,"CS",100,"CT",1200,null,{"$f":"SUM(L38*K38)","v":0},{"$f":"IFERROR(SUM(L38/I38),0)","v":0}]
[null,34,5081,"CNTNR HINGED 8x3 SQUARE CLEAR","8x3 INCH SQUARE CONTAINER CLEAR BASE AND BOTTOM, HINGED","SPECIFY",null,"CS",200,"CT",10,null,{"$f":"SUM(L39*K39)","v":0},{"$f":"IFERROR(SUM(L39/I39),0)","v":0}]
[null,35,5109,"CUP CLEAR PLASTIC 16 OZ","CUP, CLEAR PLASTIC 16 OZ","SPECIFY",null,"CS",1000,"CT",50,null,{"$f":"SUM(L40*K40)","v":0},{"$f":"IFERROR(SUM(L40/I40),0)","v":0}]
[null,36,5153,"CUP CLEAR PLASTIC 16 OZ FOR COFFE BAR","CUP ULTRA CLEAR PLASTIC HEAVY DUTY 16 OZ CLEAR PRACTICAL-FILL PET CUP. DIAMETER OF TOP (IN):. 3.9. DIAMETER OF BASE (IN):. 2.4. HEIGHT (IN):. 4.7 ","DART OR APPROVED EQUIVALENT","TP16D","CS",1000,"CT",1200,null,{"$f":"SUM(L41*K41)","v":0},{"$f":"IFERROR(SUM(L41/I41),0)","v":0}]
[null,37,5154,"CUP CLEAR PLASTIC 20 OZ FOR COFFEE BAR","CUP ULTRA CLEAR PLASTIC HEAVY DUTY 16 OZ CLEAR PRACTICAL-FILL PET CUP","DART OR APPROVED EQUIVALENT","TP20D","CS",600,"CT",1200,null,{"$f":"SUM(L42*K42)","v":0},{"$f":"IFERROR(SUM(L42/I42),0)","v":0}]
[null,38,null,"CUP COFFEE 8 OZ","CUP, 8 OZ, HOT, STYROFOAM","SPECIFY","","CS",1000,"CT",25,null,{"$f":"SUM(L43*K43)","v":0},{"$f":"IFERROR(SUM(L43/I43),0)","v":0}]
[null,39,null,"CUP COFFEE 10 OZ","CUP, 10 OZ, HOT, STYROFOAM","SPECIFY","","CS",1000,"CT",20,null,{"$f":"SUM(L44*K44)","v":0},{"$f":"IFERROR(SUM(L44/I44),0)","v":0}]
[null,40,null,"CUP COFFEE 12 OZ","CUP 12 OZ HOT STYROFOAM","SPECIFY",null,"CS",1000,"CT",20,null,{"$f":"SUM(L45*K45)","v":0},{"$f":"IFERROR(SUM(L45/I45),0)","v":0}]
[null,41,5069,"CUP COLD DRINK 12 OZ","CUP, PLASTIC CLEAR 12 OZ","SPECIFY","","CS",1000,"CT",5,null,{"$f":"SUM(L46*K46)","v":0},{"$f":"IFERROR(SUM(L46/I46),0)","v":0}]
[null,42,5152,"CUP LID DOME BLACK","LID DOME BLACK FITS 12/14/16/24 OZ CUPS","SOLO/SYMPHONY OR APPROVED EQUIVALENT",null,"CS",1000,"CT",600,null,{"$f":"SUM(L47*K47)","v":0},{"$f":"IFERROR(SUM(L47/I47),0)","v":0}]
[null,43,5155,"CUP LID PLASTIC CLEAR w/STRAW SLOT","LID UNIVERSAL 16-24 OZ CLEAR PLASTIC w/STRAW  SLOT","DART OR APPROVED EQUIVALENT","626TS","CS",1000,"CT",1000,null,{"$f":"SUM(L48*K48)","v":0},{"$f":"IFERROR(SUM(L48/I48),0)","v":0}]
[null,44,5072,"CUP PORTION 1 OZ","CUP, PORTION, 1 OZ","SPECIFY",null,"CS",2500,"CT",10,null,{"$f":"SUM(L49*K49)","v":0},{"$f":"IFERROR(SUM(L49/I49),0)","v":0}]
[null,45,5073,"CUP PORTION 1 OZ LID","CUP, LID, PORTION, 1 OZ","SPECIFY",null,"CS",2500,"CT",10,null,{"$f":"SUM(L50*K50)","v":0},{"$f":"IFERROR(SUM(L50/I50),0)","v":0}]
[null,46,5071,"CUP PORTION 2 OZ W/LID","CUP, PORTION, 2 OZ W/LID","LIDDLES OR APPROVED EQUIVALENT","","CS",900,"CT",25,null,{"$f":"SUM(L51*K51)","v":0},{"$f":"IFERROR(SUM(L51/I51),0)","v":0}]
[null,47,5051,"CUP PORTION 4 OZ W/LID","CUP, PORTION, 4 OZ W/LID","LIDDLES OR APPROVED EQUIVALENT","","CS",900,"CT",25,null,{"$f":"SUM(L52*K52)","v":0},{"$f":"IFERROR(SUM(L52/I52),0)","v":0}]
[null,48,5051,"CUP THERMAL 12 OZ","CUP THERMAL DUO SHIELD INSULATED PAPER, DIAMETER OF TOP (IN):. 3.5. DIAMETER OF BASE (IN):. 2.4. HEIGHT (IN):. 4.3. PRACTICAL FILL (OZ.): 12. FLUSH FILL (OZ.): 13.4.","SOLO/SYMPHONY OR APPROVED EQUIVALENT","IC12-J8000","CS",600,"CT",600,null,{"$f":"SUM(L53*K53)","v":0},{"$f":"IFERROR(SUM(L53/I53),0)","v":0}]
[null,49,5052,"CUTLERY COMBO PACK","FORK, SPOON, KNIFE, SALT, PEPPER, NAPKIN KIT","SPECIFY","","CS",250,"CT",100,null,{"$f":"SUM(L54*K54)","v":0},{"$f":"IFERROR(SUM(L54/I54),0)","v":0}]
[null,50,5053,"CUTLERY FORK","CUTLERY, FORK, HD, WHITE","SPECIFY","","CS",1000,"CT",500,null,{"$f":"SUM(L55*K55)","v":0},{"$f":"IFERROR(SUM(L55/I55),0)","v":0}]
[null,51,5054,"CUTLERY FORK SILVER","CUTLERY, FORK, PLASTIC, SILVERR","RELFECTIONS OR APPROVED EQUIVALENT","","CS",600,"CT",25,null,{"$f":"SUM(L56*K56)","v":0},{"$f":"IFERROR(SUM(L56/I56),0)","v":0}]
[null,52,5076,"CUTLERY KNIFE","CUTLERY, KNIFE, HD, WHITE","SPECIFY","","CS",1000,"CT",50,null,{"$f":"SUM(L57*K57)","v":0},{"$f":"IFERROR(SUM(L57/I57),0)","v":0}]
[null,53,5077,"CUTLERY KNIFE SILVER","CUTLERY, KNIFE, PLASTIC, SILVER","RELFECTIONS OR APPROVED EQUIVALENT","","CS",600,"CT",25,null,{"$f":"SUM(L58*K58)","v":0},{"$f":"IFERROR(SUM(L58/I58),0)","v":0}]
[null,54,5078,"CUTLERY SPOON","CUTLERY, SPOON, HD, WHITE","SPECIFY","","CS",1000,"CT",500,null,{"$f":"SUM(L59*K59)","v":0},{"$f":"IFERROR(SUM(L59/I59),0)","v":0}]
[null,55,5079,"CUTLERY SPOON SILVER","CUTLERY, SPOON, PLASTIC, SILVER","RELFECTIONS OR APPROVED EQUIVALENT","","CS",600,"CT",25,null,{"$f":"SUM(L60*K60)","v":0},{"$f":"IFERROR(SUM(L60/I60),0)","v":0}]
[null,56,5080,"CUTLERY SPORK KIT","SPORK AND NAPKIN ONLY","SPECIFY","","CS",1000,"CT",2300,null,{"$f":"SUM(L61*K61)","v":0},{"$f":"IFERROR(SUM(L61/I61),0)","v":0}]
[null,57,5020,"DOILY 12IN","PREMIUM PAPER DOILLY, WHITE LACE, 12 INCH ROUND","SPECIFY",null,"BOX",500,"CT",10,null,{"$f":"SUM(L62*K62)","v":0},{"$f":"IFERROR(SUM(L62/I62),0)","v":0}]
[null,58,5019,"DOILY 16IN","PREMIUM PAPER DOILLY, WHITE LACE, 16 INCH ROUND","SPECIFY",null,"BOX",500,"CT",10,null,{"$f":"SUM(L63*K63)","v":0},{"$f":"IFERROR(SUM(L63/I63),0)","v":0}]
[null,59,5021,"DOILY 18IN","PREMIUM PAPER DOILLY, WHITE LACE, 18 INCH ROUND","SPECIFY",null,"BOX",500,"CT",10,null,{"$f":"SUM(L64*K64)","v":0},{"$f":"IFERROR(SUM(L64/I64),0)","v":0}]
[null,60,5007,"DUST PAN","HEAVY DUTY UPRIGHT DUST PAN, OPEN STYLE, 12.5 WIDE X 37 IN HIGH","SPECIFY","","CS",1,"EA",12,null,{"$f":"SUM(L65*K65)","v":0},{"$f":"IFERROR(SUM(L65/I65),0)","v":0}]
[null,61,5100,"FOIL ROLL .0007 GAUGE 24IN","HEAVY DUTY ALUMINUM FOIL - SIZE 24X2000","SPECIFY","","CS",1,"EA",125,null,{"$f":"SUM(L66*K66)","v":0},{"$f":"IFERROR(SUM(L66/I66),0)","v":0}]
[null,62,5102,"FOIL SHEET PAPER LINED","FOIL, SHEET, PAPER LINED 10.5X14","SPECIFY","","CS",2500,"CT",250,null,{"$f":"SUM(L67*K67)","v":0},{"$f":"IFERROR(SUM(L67/I67),0)","v":0}]
[null,63,5101,"FOILSHEET","HEAVY DUTY ALUMINUM FOIL - SIZE 12X10","SPECIFY","","CS",1,"EA",100,null,{"$f":"SUM(L68*K68)","v":0},{"$f":"IFERROR(SUM(L68/I68),0)","v":0}]
[null,64,5035,"GLOVE POT & SINK LG","GLOVE, POT & SINK LG HD 19\" LENGTH, 25 MIL THICKNESS,HEAVY DUTY ","SPECIFY","","CS",12,"PR",15,null,{"$f":"SUM(L69*K69)","v":0},{"$f":"IFERROR(SUM(L69/I69),0)","v":0}]
[null,65,5124,"GLOVE POT & SINK MED","GLOVE, POT & SINK MED HD 19\" LENGTH, 25 MIL THICKNESS,HEAVY DUTY ","SPECIFY",null,"CS",12,"PR",15,null,{"$f":"SUM(L70*K70)","v":0},{"$f":"IFERROR(SUM(L70/I70),0)","v":0}]
[null,66,5123,"GLOVE POT & SINK SM","GLOVE, POT & SINK SMALL HD 19\" LENGTH, 25 MIL THICKNESS,HEAVY DUTY ","SPECIFY",null,"CS",12,"PR",12,null,{"$f":"SUM(L71*K71)","v":0},{"$f":"IFERROR(SUM(L71/I71),0)","v":0}]
[null,67,5144,"GLOVE POT & SINK X-LARGE","GLOVE, POT & SINK X-LARGE HD 19\" LENGTH, 25 MIL THICKNESS,HEAVY DUTY ","SPECIFY",null,"CS",12,"PR",20,null,{"$f":"SUM(L72*K72)","v":0},{"$f":"IFERROR(SUM(L72/I72),0)","v":0}]
[null,68,5057,"GLOVE VINYL LARGE","GLOVE, VINYL, LARGE, FOOD GRADE, POWDER FREE","SPECIFY","","CS",1000,"CT",300,null,{"$f":"SUM(L73*K73)","v":0},{"$f":"IFERROR(SUM(L73/I73),0)","v":0}]
[null,69,5059,"GLOVE VINYL MED","GLOVE, VINYL,MED, FOOD GRADE, POWDER FREE","SPECIFY","","CS",1000,"CT",350,null,{"$f":"SUM(L74*K74)","v":0},{"$f":"IFERROR(SUM(L74/I74),0)","v":0}]
[null,70,5058,"GLOVE VINYL SMALL","GLOVE, VINYL SMALL, FOOD GRADE, POWDER FREE","SPECIFY","","CS",1000,"CT",7,null,{"$f":"SUM(L75*K75)","v":0},{"$f":"IFERROR(SUM(L75/I75),0)","v":0}]
[null,71,5135,"GLOVE VINYL X-LARGE","GLOVE, VINYL, X-LARGE, FOOD GRADE, POWDER FREE ","SPECIFY",null,"CS",1000,"CT",100,null,{"$f":"SUM(L76*K76)","v":0},{"$f":"IFERROR(SUM(L76/I76),0)","v":0}]
[null,72,5008,"GREASTRIP PLS","CLEANER, GREASTRIP PLS, 32 OZ","ECO-LABS OR APPROVED EQUIVALENT","","CS",6,"BTL",5,null,{"$f":"SUM(L77*K77)","v":0},{"$f":"IFERROR(SUM(L77/I77),0)","v":0}]
[null,73,5009,"GRILL BRICK","GRILL, BRICK","SPECIFY","","CS",12,"CT",5,null,{"$f":"SUM(L78*K78)","v":0},{"$f":"IFERROR(SUM(L78/I78),0)","v":0}]
[null,74,5022,"HAIR NET X-LARGE BLACK","NYLON, 1/16 IN HONEYCOMB, BLACK, FDA ACCEPTED, EXTRA LARGE","SPECIFY","","CS",144,"CT",120,null,{"$f":"SUM(L79*K79)","v":0},{"$f":"IFERROR(SUM(L79/I79),0)","v":0}]
[null,75,5137,"HAIR NET X-LARGE LIGHT BROWN","NYLON, 1/16 IN HONEYCOMB, BROWN, FDA ACCEPTED, EXTRA LARGE","SPECIFY",null,"CS",144,"CT",200,null,{"$f":"SUM(L80*K80)","v":0},{"$f":"IFERROR(SUM(L80/I80),0)","v":0}]
[null,76,5000,"LAUNDRY DETERGENT LIQUID","LIQUID, HE, GALLON","TIDE/ALL OR APPROVED EQUIVALENT","","CS",4,"GAL",325,null,{"$f":"SUM(L81*K81)","v":0},{"$f":"IFERROR(SUM(L81/I81),0)","v":0}]
[null,77,5060,"LINER HALF 6IN DEEP 23X14","NSF CERIFIED, OVENABLE PLASTIC PAN LINER TO 400 F, PREFORMED CONTOUR FIT.  SIZE 23X14","SPECIFY","","CS",50,"CT",315,null,{"$f":"SUM(L82*K82)","v":0},{"$f":"IFERROR(SUM(L82/I82),0)","v":0}]
[null,78,5023,"LINER HOTEL PAN DEEP 34X18","NSF CERIFIED, OVENABLE PLASTIC PAN LINER TO 400 F, PREFORMED CONTOUR FIT.  SIZE 34x18","SPECIFY","","CS",50,"CT",500,null,{"$f":"SUM(L83*K83)","v":0},{"$f":"IFERROR(SUM(L83/I83),0)","v":0}]
[null,79,5104,"LINER PAN 4IN 34x12","NSF CERIFIED, OVENABLE PAN LINER TO 400 F, 4 IN 34x12","SPECIFY","","CS",100,"CT",25,null,{"$f":"SUM(L84*K84)","v":0},{"$f":"IFERROR(SUM(L84/I84),0)","v":0}]
[null,80,5024,"LINER SHEET PAN 16 3/8 X 24","NSF CERIFIED, OVENABLE PAN LINER TO 400 F, 16 3/8 X 25","SPECIFY","","CS",1000,"CT",200,null,{"$f":"SUM(L85*K85)","v":0},{"$f":"IFERROR(SUM(L85/I85),0)","v":0}]
[null,81,5049,"LINER TRASH CAN 33 GAL","LOW-DENSITY CAN LINERS, 33X39, WHITE, FLAT PACKED, .7 MIL, FITS 33 GALLON","SPECIFY","","CS",150,"CT",50,null,{"$f":"SUM(L86*K86)","v":0},{"$f":"IFERROR(SUM(L86/I86),0)","v":0}]
[null,82,5050,"LINER TRASH CAN 60 GAL","LOW-DENSITY CAN LINERS, 38X58, BLACK, FLAT PACK, 1.5 MIL, FITS 60 GALLON","SPECIFY","","CS",100,"CT",300,null,{"$f":"SUM(L87*K87)","v":0},{"$f":"IFERROR(SUM(L87/I87),0)","v":0}]
[null,83,5010,"MOP HANDLE","JAW STYLE HANDLE, RECOMMENDED FOR WIDE HEADBANDS, MADE OF FIBERGLASS MEASURES 1\" DIAMETER BY 60\" LENGTH","SPECIFY",null,"EA",1,"CT",24,null,{"$f":"SUM(L88*K88)","v":0},{"$f":"IFERROR(SUM(L88/I88),0)","v":0}]
[null,84,5011,"MOP HEAD MEDIUM BLUE","MOP HEAD, MEDIUM, BLUE, WIDE BAND ATOMIC LOOP","SPECIFY",null,"EA",1,"EA",50,null,{"$f":"SUM(L89*K89)","v":0},{"$f":"IFERROR(SUM(L89/I89),0)","v":0}]
[null,85,5146,"MOP HEAD SMALL BLUE","MOP HEAD, SMALL, BLUE, WIDE BAND ATOMIC LOOP","SPECIFY",null,"EA",1,"EA",50,null,{"$f":"SUM(L90*K90)","v":0},{"$f":"IFERROR(SUM(L90/I90),0)","v":0}]
[null,86,5106,"NAPKIN EXPRESS","TORK ADVANCED XPRESSNAP DISPENSER NAPKIN, INTERFOLD, WHITE 13X8.5 (OPEN) 6.5X4.25 (FOLDED)  500 1 PLY","TORK OR APPROVED EQUIVALENT","","CS",6000,"CT",275,null,{"$f":"SUM(L91*K91)","v":0},{"$f":"IFERROR(SUM(L91/I91),0)","v":0}]
[null,87,null,"OVEN MITT NEOPRENE","OVEN MITT, 17\", HEAT RESISTANT UP TO 500, NON-SLIP, STAIN AND WATER RESISTANT, DISHWASHER SAFE, TEXTURED NEOPRENE","SPECIFY",null,"CS",24,"1 CT",10,null,{"$f":"SUM(L92*K92)","v":0},{"$f":"IFERROR(SUM(L92/I92),0)","v":0}]
[null,88,5028,"PAN FOIL STEAM TABLE","FULL SIZE FOIL STEAM TABLE PAN, 50/20X12X2","SPECIFY","","CS",40,"CT",20,null,{"$f":"SUM(L93*K93)","v":0},{"$f":"IFERROR(SUM(L93/I93),0)","v":0}]
[null,89,5061,"PAPER BATHROOM TISSUE 2 PLY","2PLY - UNIVERSAL ROLL TISSUE -- 96 PER CASE ","SPECIFY","","CS",96,"CT",55,null,{"$f":"SUM(L94*K94)","v":0},{"$f":"IFERROR(SUM(L94/I94),0)","v":0}]
[null,90,5140,"PAPER NAPKINS COCKTAIL","1 PLY, 8.7x12, DAINTY, FOLDED, WHITE","TORK OR APPROVED EQUIVALENT",null,"CS",4000,"CT",10,null,{"$f":"SUM(L95*K95)","v":0},{"$f":"IFERROR(SUM(L95/I95),0)","v":0}]
[null,91,5134,"PAPER NAPKINS DINNER","2 PLY, WHITE, 1/8 FOLD, 15x17","SPECIFY",null,"CS",3000,"CT",10,null,{"$f":"SUM(L96*K96)","v":0},{"$f":"IFERROR(SUM(L96/I96),0)","v":0}]
[null,92,5125,"PAPER TABLE COVERS","LINEN LIKE WITH PLASTIC BACKING, WHITE, 50x108","SPECIFY",null,"CS",24,"CT",55,null,{"$f":"SUM(L97*K97)","v":0},{"$f":"IFERROR(SUM(L97/I97),0)","v":0}]
[null,93,5086,"PLATE 3 CMPT BLACK FOAM ","PLATE, 3 CMPT, LAMIINAETED BLACK FOAM 10.25 IN","SPECIFY","","CS",500,"CT",5,null,{"$f":"SUM(L98*K98)","v":0},{"$f":"IFERROR(SUM(L98/I98),0)","v":0}]
[null,94,5085,"PLATE BLACK FOAM 10.25\"","PLATE, 10.25 IN, LAMINATED BLACK FOAM","SPECIFY","","CS",500,"CT",2,null,{"$f":"SUM(L99*K99)","v":0},{"$f":"IFERROR(SUM(L99/I99),0)","v":0}]
[null,95,5082,"PLATE BLACK FOAM 6\"","PLATE, 6 IN, BLACK, LAMINATED FOAM","SPECIFY","","CS",1000,"CT",15,null,{"$f":"SUM(L100*K100)","v":0},{"$f":"IFERROR(SUM(L100/I100),0)","v":0}]
[null,96,5128,"PLATTER OVAL","OVAL, WHITE LAMINATED FOAM, 9 INCH","SPECIFY",null,"CS",500,"CT",15,null,{"$f":"SUM(L101*K101)","v":0},{"$f":"IFERROR(SUM(L101/I101),0)","v":0}]
[null,97,5108,"POT HOLDERS","POT HOLDER/PAN GRABBER","SPECIFY",null,"CS",12,"EA",75,null,{"$f":"SUM(L102*K102)","v":0},{"$f":"IFERROR(SUM(L102/I102),0)","v":0}]
[null,98,5014,"SCOURING PAD HVY NYLON 6X9 GR","SCOURING PAD, HVY NYLON, 6X9, GREEN","SPECIFY","","CS",20,"CT",75,null,{"$f":"SUM(L103*K103)","v":0},{"$f":"IFERROR(SUM(L103/I103),0)","v":0}]
[null,99,5015,"SCOURING PADS STAINLESS STEAL","SCOURING PADS, STAINLESS STEAL, 50 GR 1.75 OZ","SPECIFY","","CS",12,"CT",45,null,{"$f":"SUM(L104*K104)","v":0},{"$f":"IFERROR(SUM(L104/I104),0)","v":0}]
[null,100,5012,"SCOURING POWDER","CLEANER, SCOURING POWDER, 21 OZ","SPECIFY","","CS",24,"BTL",2,null,{"$f":"SUM(L105*K105)","v":0},{"$f":"IFERROR(SUM(L105/I105),0)","v":0}]
[null,101,5129,"STERNO","STERNO, GEL, NO WICK, 2 HOUR BURN","STERNO OR APPROVED EQUIVALENT",null,"CS",72,"EA",15,null,{"$f":"SUM(L106*K106)","v":0},{"$f":"IFERROR(SUM(L106/I106),0)","v":0}]
[null,102,5119,"STIRRER","STIRRER BEVERAGE","SPECIFY",null,"CS",1000,"CT",10,null,{"$f":"SUM(L107*K107)","v":0},{"$f":"IFERROR(SUM(L107/I107),0)","v":0}]
[null,103,5036,"THERMOMETER DIAL","THERMOMETER, DIAL,  DURABLE STAINLESS STEEL STEM. TEMPERATURE RANGE OF 0°F - 220°F","SPECIFY","","CS",1,"CT",25,null,{"$f":"SUM(L108*K108)","v":0},{"$f":"IFERROR(SUM(L108/I108),0)","v":0}]
[null,104,5037,"THERMOMETER DIGITAL FAHRENHEIT","EASY-TO-READ DIGITAL DISPLAY. ON/OFF SWITCH FOR LONG BATTERY LIFE. DURABLE STAINLESS STEEL STEM. POCKET CASE AND EXTRA BATTERY INCLUDED. TEMPERATURE RANGE OF 0°F - 220°F","SPECIFY","","CS",1,"CT",150,null,{"$f":"SUM(L109*K109)","v":0},{"$f":"IFERROR(SUM(L109/I109),0)","v":0}]
[null,105,5038,"THERMOMETER FREEZER","FREEZER GUIDE THERMOMETER, 4.875 INCH -- 1 EACH TEMPERATURE RANGE OF -40°F - 100°F","SPECIFY","","CS",1,"CT",20,null,{"$f":"SUM(L110*K110)","v":0},{"$f":"IFERROR(SUM(L110/I110),0)","v":0}]
[null,106,5039,"THERMOMETER OVEN","EASY-TO-READ 2 1/4\" DIAL. RANGE 100 F TO 600 F. DURABLE STAINLESS STEEL. HANGS OR STANDS. NSF LISTED. MADE TO GO INSIDE OVEN","SPECIFY","","CS",1,"CT",5,null,{"$f":"SUM(L111*K111)","v":0},{"$f":"IFERROR(SUM(L111/I111),0)","v":0}]
[null,107,5040,"THERMOMETER REFRIGERATOR","REFRIGERATOR THERMOMETER- DUAL, STAINLESS STEEL, 20/80-TEMPERATURE RANGE OF -40°F - 100°F","SPECIFY","","CS",1,"CT",40,null,{"$f":"SUM(L112*K112)","v":0},{"$f":"IFERROR(SUM(L112/I112),0)","v":0}]
[null,108,5145,"TOWEL MICROFIBER","TOWEL, BAR MOP, MICROFIBER CLOTH 16X16, ALL WHITE BUT WILL ACCEPT ASSORTED COLORS","SPECIFY","","CS",12,"CT",200,null,{"$f":"SUM(L113*K113)","v":0},{"$f":"IFERROR(SUM(L113/I113),0)","v":0}]
[null,109,5105,"TOWEL PAPER MULTIFOLD","TOWEL PAPER, C FOLD TO FIT ADVANCE TABCO 3.25X11.25","SPECIFY",null,"CS",4000,"CT",20,null,{"$f":"SUM(L114*K114)","v":0},{"$f":"IFERROR(SUM(L114/I114),0)","v":0}]
[null,110,5150,"TOWEL PAPER ROLL","TOWEL PAPER ROLL 8”X950’ WHITE HARD ROLL TOWEL 6/CS","SCOTT OR APPROVED EQUIVALENT",2000,"CS",6,"ROLL",20,null,{"$f":"SUM(L115*K115)","v":0},{"$f":"IFERROR(SUM(L115/I115),0)","v":0}]
[null,111,5030,"TOWEL PAPER SINGLE FOLD NATURAL","TOWEL, PAPER, SINGLE FOLD, NATURAL 10.25X9.25","SPECIFY","","CS",4000,"CT",350,null,{"$f":"SUM(L116*K116)","v":0},{"$f":"IFERROR(SUM(L116/I116),0)","v":0}]
[null,112,5002,"TRAY 5 CMPT BLACK","TRAY, 5 COMPARTMENT, BLACK FOAM, HEAVY DUTY","SPECIFY",null,"CS",500,"CT",5000,null,{"$f":"SUM(L117*K117)","v":0},{"$f":"IFERROR(SUM(L117/I117),0)","v":0}]
[null,113,null,"TRAY BOWL & LID COMBO","DURABLE AND CRACK RESISTANT, SECURE TAB LOCKING SYSTEM, INTERLOCKING LIDS, 16\" SQUARE 4 COMPARTMENT TRAY w/CLEAR LID AND AN INSIDE 12\" ROUND BOWL w/CLEAR LID COMBO SET","SYSCO IMP OR APPROVED EQUIVALENT","5077534   5077526","CS",null,"CT",10,null,{"$f":"SUM(L118*K118)","v":0},{"$f":"IFERROR(SUM(L118/I118),0)","v":0}]
[null,114,5120,"TRAY CATERING 18IN ","DURABLE AND CRACK RESISTANT, SECURE TAB LOCKING SYSTEM, INTERLOCKING LIDS - 16 IN ROUND, BLACK HARD PLASTIC","SYSCO OR APPROVED EQUIVALENT",5948948,"CS",36,"CT",10,null,{"$f":"SUM(L119*K119)","v":0},{"$f":"IFERROR(SUM(L119/I119),0)","v":0}]
[null,115,5094,"TRAY CATERING 18IN LID","DURABLE AND CRACK RESISTANT, SECURE TAB LOCKING SYSTEM, INTERLOCKING LIDS - 18 IN ROUND DOME LID, CLEAR","SYSCO OR APPROVED EQUIVALENT",7432834,"CS",36,"CT",10,null,{"$f":"SUM(L120*K120)","v":0},{"$f":"IFERROR(SUM(L120/I120),0)","v":0}]
[null,116,5103,"WRAP PLASTIC PVC FILM CUTTER","CONTINUOUS LENGTH ROLLS WITH CUTTER, SIZE 24\" X 2000","SPECIFY","","CS",1,"CT",120,null,{"$f":"SUM(L121*K121)","v":0},{"$f":"IFERROR(SUM(L121/I121),0)","v":0}]